lending/lending_fUSD_20240723
["ID","MTS","AMOUNT","RATE_DAILY","PERIOD"]
[333033597,1721773848019,-500.0,0.00010999,2]
[333033598,1721773848030,-500.0,0.00010999,2]
[333033599,1721773848045,-500.0,0.00010999,2]
[333033600,1721773848056,-500.0,0.00010999,2]
[333033601,1721773848068,-500.0,0.00010999,2]
[333033602,1721773848083,-500.0,0.00010999,2]
[333033603,1721773848093,-500.0,0.00010999,2]
[333033604,1721773848106,-500.0,0.00010999,2]
[333033605,1721773848115,-500.0,0.00010999,2]
[333033606,1721773848126,-500.0,0.00010999,2]
[333033607,1721773848136,-500.0,0.00010999,2]
[333033608,1721773848146,-500.0,0.00010999,2]
[333033609,1721773848156,-500.0,0.00010999,2]
[333033610,1721773848167,-323.0,0.00010999,2]
[333033611,1721773848178,-500.0,0.00010999,2]
[333033612,1721773848191,-625.18,0.00010999,2]
[333033613,1721773848202,-500.0,0.00010999,2]
[333033614,1721773848212,-500.0,0.00010999,2]
[333033615,1721773848223,-500.0,0.00010999,2]
[333033616,1721773848234,-500.0,0.00010999,2]
[333033617,1721773848243,-500.0,0.00010999,2]
[333033618,1721773848253,-500.0,0.00010999,2]
[333033619,1721773848262,-500.0,0.00010999,2]
[333033620,1721773848272,-500.0,0.00010999,2]
[333033621,1721773848282,-500.0,0.00010999,2]
[333033622,1721773848292,-500.0,0.00010999,2]
[333033623,1721773848302,-298.77,0.00010999,2]
[333033624,1721773848312,-500.0,0.00010999,2]
[333033625,1721773848322,-500.0,0.00010999,2]
[333033626,1721773848332,-291.46,0.00010999,2]
[333033627,1721773848342,-500.0,0.00010999,2]
[333033628,1721773848352,-500.0,0.00010999,2]
[333033629,1721773848362,-500.0,0.00010999,2]
[333033630,1721773848373,-500.0,0.00010999,2]
[333033631,1721773848382,-500.0,0.00010999,2]
[333033632,1721773848391,-500.0,0.00010999,2]
[333033633,1721773848401,-500.0,0.00010999,2]
[333033634,1721773848411,-500.0,0.00010999,2]
[333033635,1721773848422,-500.0,0.00010999,2]
[333033636,1721773848433,-186.33,0.00010999,2]
[333033637,1721773848443,-500.0,0.00010999,2]
[333033638,1721773848452,-500.0,0.00010999,2]
[333033639,1721773848462,-500.0,0.00010999,2]
[333033640,1721773848471,-500.0,0.00010999,2]
[333033641,1721773848481,-500.0,0.00010999,2]
[333033642,1721773848491,-500.0,0.00010999,2]
[333033643,1721773848500,-500.0,0.00010999,2]
[333033644,1721773848510,-500.0,0.00010999,2]
[333033645,1721773848521,-500.0,0.00010999,2]
[333033646,1721773848531,-500.0,0.00010999,2]
[333033647,1721773848541,-500.0,0.00010999,2]
[333033648,1721773848551,-500.0,0.00010999,2]
[333033649,1721773848560,-500.0,0.00010999,2]
[333033650,1721773848570,-500.0,0.00010999,2]
[333033651,1721773848581,-500.0,0.00010999,2]
[333033652,1721773848591,-500.0,0.00010999,2]
[333033653,1721773848602,-500.0,0.00010999,2]
[333033654,1721773848613,-528.58,0.00010999,2]
[333033655,1721773848623,-500.0,0.00010999,2]
[333033656,1721773848633,-500.0,0.00010999,2]
[333033657,1721773848643,-500.0,0.00010999,2]
[333033658,1721773848654,-500.0,0.00010999,2]
[333033659,1721773848665,-500.0,0.00010999,2]
[333033660,1721773848675,-362.92,0.00010999,2]
[333033661,1721773848686,-419.1,0.00010999,2]
[333033662,1721773848695,-833.33,0.00010999,2]
[333033663,1721773848705,-833.33,0.00010999,2]
[333033664,1721773848715,-833.33,0.00010999,2]
[333033665,1721773848725,-833.33,0.00010999,2]
[333033666,1721773848736,-833.33,0.00010999,2]
[333033667,1721773848745,-500.0,0.00010999,2]
[333033668,1721773848756,-833.33,0.00010999,2]
[333033669,1721773848767,-500.0,0.00010999,2]
[333033670,1721773848777,-833.33,0.00010999,2]
[333033671,1721773848787,-500.0,0.00010999,2]
[333033672,1721773848798,-833.33,0.00010999,2]
[333033673,1721773848810,-500.0,0.00010999,2]
[333033674,1721773848821,-833.33,0.00010999,2]
[333033675,1721773848832,-500.0,0.00010999,2]
[333033676,1721773848843,-833.33,0.00010999,2]
[333033677,1721773848852,-202.06,0.00010999,2]
[333033678,1721773848862,-833.33,0.00010999,2]
[333033679,1721773848872,-257465.86507907,0.00011,2]
[333033680,1721773848937,-1109.76890871,0.00011,2]
[333033681,1721773848964,-688.56235155,0.00011,2]
[333033682,1721773848975,-6246.50973598,0.00011,2]
[333033683,1721773849405,-1216.99179144,0.00011,2]
[333033684,1721773849417,-3854.16700004,0.00011,2]
[333033685,1721773849430,-10695.986218,0.00011,2]
[333033686,1721773872347,254.22438384,6.781e-05,7]
[333033688,1721773892979,153.35,0.000149,31]
[333033689,1721773893032,153.35,0.000149,31]
[333033690,1721773893099,153.35,0.000149,31]
[333033691,1721773893213,153.35,0.000149,31]
[333033692,1721773893271,153.35,0.000149,31]
[333033693,1721773893328,153.35,0.000149,31]
[333033694,1721773893391,153.35,0.000149,31]
[333033695,1721773893452,153.35,0.000149,31]
[333033696,1721774233215,551.01,8.219e-05,2]
[333033697,1721774359496,4951.47613698,8.219e-05,2]
[333033698,1721774359518,7908.33396237,8.219e-05,2]
[333033699,1721774500730,153.47,0.000149,31]
[333033700,1721774500785,153.47,0.000149,31]
[333033701,1721774500841,153.47,0.000149,31]
[333033702,1721774500906,153.47,0.000149,31]
[333033703,1721774500968,153.47,0.000149,31]
[333033704,1721774501025,153.47,0.000149,31]
[333033705,1721774501094,153.47,0.000149,31]
[333033706,1721774501150,153.47,0.000149,31]
[333033707,1721774501210,153.47,0.000149,31]
[333033708,1721774501247,153.47,0.000149,31]
[333033709,1721774501341,153.47,0.000149,31]
[333033710,1721774501381,153.47,0.000149,31]
[333033711,1721774501461,153.47,0.000149,31]
[333033712,1721774501511,153.47,0.000149,31]
[333033713,1721774501589,153.47,0.000149,31]
[333033714,1721774501648,153.47,0.000149,31]
[333033715,1721774501702,153.47,0.000149,31]
[333033716,1721774501759,153.47,0.000149,31]
[333033717,1721774501835,153.47,0.000149,31]
[333033718,1721774501879,153.47,0.000149,31]
[333033719,1721774509511,2091.66603763,8.219e-05,2]
[333033720,1721774509533,7908.33396237,8.219e-05,2]
[333033721,1721774544614,400.0,0.00015,30]
[333033722,1721774675844,-200.0,9.757e-05,2]
[333033723,1721774675867,-332.42403904,9.769e-05,2]
[333033724,1721774675891,-1621.57596096,9.769e-05,2]
[333033726,1721774773391,579.59,8.219e-05,2]
[333033727,1721774812039,1512.07603763,8.219e-05,2]
[333033728,1721774812062,8837.87069978,8.219e-05,2]
[333033733,1721774952554,1162.12930022,8.219e-05,2]
[333033734,1721774952576,9502.81613132,8.219e-05,2]
[333033748,1721775033336,-250.0,9.628e-05,2]
[333033749,1721775033346,-1521.62852735,9.648e-05,2]
[333033750,1721775033358,-602.4599999,9.648e-05,2]
[333033751,1721775033369,-331.9599993,9.648e-05,2]
[333033752,1721775033531,-548.34318324,9.648e-05,2]
[333033753,1721775033545,-1922.28237629,9.648e-05,2]
[333033754,1721775033555,-4238.11135422,9.649e-05,2]
[333033755,1721775033567,-849.28864578,9.649e-05,2]
[333033756,1721775033577,-150.24067071,9.655e-05,2]
[333033757,1721775033588,-152.35,9.67e-05,2]
[333033758,1721775033598,-200.0,9.674e-05,2]
[333033759,1721775033608,-152.16019047,9.689e-05,2]
[333033760,1721775033618,-173.55877246,9.77e-05,2]
[333033761,1721775033628,-159.63083378,9.819e-05,2]
[333033762,1721775033638,-1000.0,9.844e-05,2]
[333033763,1721775033649,-477.01094481,9.962e-05,2]
[333033764,1721775033659,-156.02826447,0.00010022,2]
[333033765,1721775033668,-150.0,0.00010219,2]
[333033766,1721775033679,-300.0,0.00010246,2]
[333033767,1721775033688,-150.0,0.00010247,2]
[333033768,1721775033698,-150.99,0.00010247,2]
[333033769,1721775033708,-150.0,0.00010247,2]
[333033770,1721775033718,-150.0,0.00010247,2]
[333033771,1721775033728,-262.24,0.000103,2]
[333033772,1721775033738,-500.0,0.000104,3]
[333033773,1721775033748,-579.59,0.00010463,2]
[333033774,1721775033758,-8499.0,0.000105,5]
[333033775,1721775033768,-1000.0,0.000105,3]
[333033776,1721775033779,-1500.0,0.000106,3]
[333033777,1721775033789,-152.16019047,0.00010632,2]
[333033778,1721775033799,-150.0,0.00010665,2]
[333033779,1721775033808,-2182.6108841,0.00010666,2]
[333033780,1721775033821,-11535.03042898,0.00010666,2]
[333033781,1721775033832,-577.08950482,0.00010666,2]
[333033782,1721775033845,-1670.90790627,0.00010666,2]
[333033783,1721775033857,-1757.76879465,0.00010666,2]
[333033784,1721775033900,-2000.0,0.00010666,2]
[333033785,1721775033942,-0.53312443,0.00010666,2]
[333033786,1721775033963,-2424.32883155,0.00010666,2]
[333033787,1721775033974,-2948.45284013,0.00010666,2]
[333033788,1721775034088,-9780.27768507,0.00010666,2]
[333033789,1721775034099,-150.0,0.00010685,2]
[333033790,1721775034109,-425.5,0.00010685,2]
[333033791,1721775034119,-1059.48,0.00010685,2]
[333033792,1721775034129,-150.0,0.00010685,2]
[333033793,1721775034139,-150.0,0.00010685,2]
[333033794,1721775034150,-171.18,0.00010685,2]
[333033795,1721775034160,-758.57,0.00010685,2]
[333033796,1721775034169,-230.62,0.00010685,2]
[333033797,1721775034179,-150.0,0.00010685,2]
[333033798,1721775034189,-260.97231493,0.00010685,2]
[333033799,1721775034201,-21.69768507,0.00010685,2]
[333033800,1721775034210,-425.5,0.00010685,2]
[333033801,1721775034220,-150.0,0.00010685,2]
[333033802,1721775034230,-45.2672975,0.00010685,2]
[333033803,1721775034242,-104.7327025,0.00010685,2]
[333033804,1721775034252,-150.0,0.00010685,2]
[333033805,1721775034262,-165.31,0.00010685,2]
[333033806,1721775034272,-150.0,0.00010685,2]
[333033807,1721775034282,-150.0,0.00010685,2]
[333033808,1721775034292,-150.0,0.00010685,2]
[333033809,1721775034301,-425.5,0.00010685,2]
[333033810,1721775034311,-150.0,0.00010685,2]
[333033811,1721775034321,-165.31,0.00010685,2]
[333033812,1721775034331,-150.0,0.00010685,2]
[333033813,1721775034342,-150.0,0.00010685,2]
[333033814,1721775034352,-150.0,0.00010685,2]
[333033815,1721775034362,-150.0,0.00010685,2]
[333033816,1721775034372,-150.0,0.00010685,2]
[333033817,1721775034382,-150.0,0.00010685,2]
[333033818,1721775034392,-165.31,0.00010685,2]
[333033819,1721775034402,-424.94,0.00010685,2]
[333033820,1721775034411,-150.0,0.00010685,2]
[333033821,1721775034421,-150.0,0.00010685,2]
[333033822,1721775034430,-150.0,0.00010685,2]
[333033823,1721775034440,-150.0,0.00010685,2]
[333033824,1721775034450,-165.31,0.00010685,2]
[333033825,1721775034459,-150.0,0.00010685,2]
[333033826,1721775034473,-165.31,0.00010685,2]
[333033827,1721775034483,-300.0,0.00010685,2]
[333033828,1721775034493,-150.0,0.00010685,2]
[333033829,1721775034503,-165.31,0.00010685,2]
[333033830,1721775034513,-150.0,0.00010685,2]
[333033831,1721775034523,-165.31,0.00010685,2]
[333033832,1721775034532,-150.0,0.00010685,2]
[333033833,1721775034542,-2000.0,0.000107,3]
[333033834,1721775034554,-153.78556042,0.00010774,2]
[333033835,1721775034564,-1286.43156009,0.0001078,2]
[333033836,1721775034574,-350.51,0.0001078,2]
[333033837,1721775034583,-2600.0,0.000108,3]
[333033838,1721775034593,-153.78556042,0.00010867,2]
[333033839,1721775034603,-191.21106072,0.00010898,2]
[333033840,1721775034614,-198.34022676,0.000109,2]
[333033841,1721775034623,-500.0,0.000109,3]
[333033842,1721775034633,-500.0,0.00010912,2]
[333033843,1721775034643,-152.16019047,0.00010916,2]
[333033844,1721775034653,-2200.0,0.00010948,3]
[333033845,1721775034663,-500.0,0.00010959,2]
[333033846,1721775034673,-500.0,0.00010959,2]
[333033847,1721775034684,-250.0,0.00010959,2]
[333033848,1721775034694,-2169.67,0.00010985,2]
[333033849,1721775034704,-500.0,0.00010985,2]
[333033850,1721775034713,-500.0,0.00010985,2]
[333033851,1721775034724,-500.0,0.00010985,2]
[333033852,1721775034734,-500.0,0.00010985,2]
[333033853,1721775034744,-500.0,0.00010986,2]
[333033854,1721775034755,-500.0,0.00010986,2]
[333033855,1721775034765,-500.0,0.00010986,2]
[333033856,1721775034775,-500.0,0.00010986,2]
[333033857,1721775034785,-500.0,0.00010986,2]
[333033858,1721775034795,-500.0,0.00010986,2]
[333033859,1721775034804,-500.0,0.00010986,2]
[333033860,1721775034814,-2040.44,0.00010986,2]
[333033861,1721775034823,-500.0,0.00010986,2]
[333033862,1721775034833,-500.0,0.00010986,2]
[333033863,1721775034843,-500.0,0.00010986,2]
[333033864,1721775034858,-588.9,0.00010986,2]
[333033865,1721775034868,-500.0,0.00010986,2]
[333033866,1721775034878,-500.0,0.00010986,2]
[333033867,1721775034889,-500.0,0.00010986,2]
[333033868,1721775034898,-13.52661951,0.00010986,2]
[333033869,1721775034911,-486.47338049,0.00010986,2]
[333033870,1721775034922,-500.0,0.00010986,2]
[333033871,1721775034935,-500.0,0.00010986,2]
[333033872,1721775034945,-500.0,0.00010986,2]
[333033873,1721775034955,-500.0,0.00010986,2]
[333033874,1721775034968,-382.27505549,0.00010986,2]
[333033875,1721775034981,-500.0,0.00010986,2]
[333033876,1721775034995,-500.0,0.00010986,2]
[333033877,1721775035009,-500.0,0.00010986,2]
[333033878,1721775035021,-164.95078722,0.00010986,2]
[333033879,1721775035034,-500.0,0.00010986,2]
[333033880,1721775035047,-500.0,0.00010986,2]
[333033881,1721775035058,-500.0,0.00010986,2]
[333033882,1721775035069,-500.0,0.00010986,2]
[333033883,1721775035080,-500.0,0.00010986,2]
[333033884,1721775035094,-500.0,0.00010986,2]
[333033885,1721775035106,-619.31,0.00010986,2]
[333033886,1721775035117,-500.0,0.00010986,2]
[333033887,1721775035129,-500.0,0.00010986,2]
[333033888,1721775035141,-262.32706255,0.00010986,2]
[333033889,1721775035157,-237.67293745,0.00010986,2]
[333033890,1721775035169,-500.0,0.00010986,2]
[333033891,1721775035181,-171.68654365,0.00010986,2]
[333033892,1721775035195,-328.31345635,0.00010986,2]
[333033893,1721775035207,-500.0,0.00010986,2]
[333033894,1721775035218,-256.18813777,0.00010986,2]
[333033897,1721775038831,-500.0,0.00010985,2]
[333033898,1721775038844,-217.96206054,0.00010986,2]
[333033899,1721775038856,-25.84980169,0.00010986,2]
[333033900,1721775038866,-500.0,0.00010986,2]
[333033901,1721775038876,-500.0,0.00010986,2]
[333033902,1721775038887,-500.0,0.00010986,2]
[333033903,1721775038897,-500.0,0.00010986,2]
[333033904,1721775038907,-500.0,0.00010986,2]
[333033905,1721775038917,-500.0,0.00010986,2]
[333033906,1721775038929,-500.0,0.00010986,2]
[333033907,1721775038939,-500.0,0.00010986,2]
[333033908,1721775038950,-500.0,0.00010986,2]
[333033909,1721775038960,-500.0,0.00010986,2]
[333033910,1721775038970,-500.0,0.00010986,2]
[333033911,1721775038980,-500.0,0.00010986,2]
[333033912,1721775038989,-455.51995819,0.00010986,2]
[333033913,1721775038999,-500.0,0.00010986,2]
[333033914,1721775039009,-500.0,0.00010986,2]
[333033915,1721775039020,-500.0,0.00010986,2]
[333033916,1721775039031,-500.0,0.00010986,2]
[333033917,1721775039041,-500.0,0.00010986,2]
[333033918,1721775039051,-500.0,0.00010986,2]
[333033919,1721775039061,-500.0,0.00010986,2]
[333033920,1721775039071,-500.0,0.00010986,2]
[333033921,1721775039081,-150.0,0.00010986,2]
[333033922,1721775039093,-500.0,0.00010986,2]
[333033923,1721775039103,-500.0,0.00010986,2]
[333033924,1721775039115,-500.0,0.00010986,2]
[333033925,1721775039126,-500.0,0.00010986,2]
[333033926,1721775039137,-500.0,0.00010986,2]
[333033927,1721775039148,-416.08429394,0.00010986,2]
[333033928,1721775039158,-500.0,0.00010986,2]
[333033929,1721775039168,-500.0,0.00010986,2]
[333033930,1721775039179,-500.0,0.00010986,2]
[333033931,1721775039190,-500.0,0.00010986,2]
[333033932,1721775039201,-500.0,0.00010986,2]
[333033933,1721775039212,-500.0,0.00010986,2]
[333033934,1721775039222,-500.0,0.00010986,2]
[333033935,1721775039232,-643.02,0.00010986,2]
[333033936,1721775039243,-305.30089389,0.00010986,2]
[333033937,1721775039279,-194.69910611,0.00010986,2]
[333033938,1721775039289,-117.91469389,0.00010986,2]
[333033939,1721775039301,-382.08530611,0.00010986,2]
[333033940,1721775039311,-500.0,0.00010986,2]
[333033941,1721775039320,-5.41469389,0.00010986,2]
[333033942,1721775039332,-494.58530611,0.00010986,2]
[333033943,1721775039342,-500.0,0.00010986,2]
[333033944,1721775039352,-500.0,0.00010986,2]
[333033945,1721775039362,-500.0,0.00010986,2]
[333033946,1721775039372,-500.0,0.00010986,2]
[333033947,1721775039384,-500.0,0.00010986,2]
[333033948,1721775039394,-500.0,0.00010986,2]
[333033949,1721775039405,-500.0,0.00010986,2]
[333033950,1721775039417,-500.0,0.00010986,2]
[333033951,1721775039428,-500.0,0.00010986,2]
[333033952,1721775039438,-500.0,0.00010986,2]
[333033953,1721775039449,-500.0,0.00010986,2]
[333033954,1721775039461,-500.0,0.00010986,2]
[333033955,1721775039474,-347.75846239,0.00010986,2]
[333033956,1721775039484,-500.0,0.00010986,2]
[333033957,1721775039494,-500.0,0.00010986,2]
[333033958,1721775039504,-500.0,0.00010986,2]
[333033959,1721775039514,-500.0,0.00010986,2]
[333033960,1721775039524,-500.0,0.00010986,2]
[333033961,1721775039535,-500.0,0.00010986,2]
[333033962,1721775039546,-500.0,0.00010986,2]
[333033963,1721775039556,-500.0,0.00010986,2]
[333033964,1721775039566,-500.0,0.00010986,2]
[333033965,1721775039576,-367.26398214,0.00010986,2]
[333033966,1721775039589,-132.73601786,0.00010986,2]
[333033967,1721775039599,-500.0,0.00010986,2]
[333033968,1721775039609,-141.33394665,0.00010986,2]
[333033969,1721775039620,-358.66605335,0.00010986,2]
[333033970,1721775039630,-500.0,0.00010986,2]
[333033971,1721775039640,-242.00520509,0.00010986,2]
[333033972,1721775039669,-257.99479491,0.00010986,2]
[333033973,1721775039679,-500.0,0.00010986,2]
[333033974,1721775039690,-500.0,0.00010986,2]
[333033975,1721775039700,-500.0,0.00010986,2]
[333033976,1721775039709,-216.21267553,0.00010986,2]
[333033978,1721775040327,-283.78732447,0.00010986,2]
[333033981,1721775040348,-159.34359935,0.00010986,2]
[333033983,1721775040371,-340.65640065,0.00010986,2]
[333033984,1721775040381,-500.0,0.00010986,2]
[333033985,1721775040391,-500.0,0.00010986,2]
[333033986,1721775040400,-500.0,0.00010986,2]
[333033987,1721775040409,-127.88183896,0.00010986,2]
[333033988,1721775040426,-372.11816104,0.00010986,2]
[333033989,1721775040436,-283.57828826,0.00010986,2]
[333033990,1721775040447,-216.42171174,0.00010986,2]
[333033991,1721775040457,-422.39828826,0.00010986,2]
[333033992,1721775040772,-77.60171174,0.00010986,2]
[333033993,1721775040782,-500.0,0.00010986,2]
[333033994,1721775040791,-500.0,0.00010986,2]
[333033995,1721775040801,-500.0,0.00010986,2]
[333033996,1721775040810,-500.0,0.00010986,2]
[333033997,1721775040819,-500.0,0.00010986,2]
[333033998,1721775040828,-515.07836427,0.00010986,2]
[333033999,1721775040837,-500.0,0.00010986,2]
[333034000,1721775040847,-500.0,0.00010986,2]
[333034001,1721775040856,-500.0,0.00010986,2]
[333034002,1721775040866,-15.39235615,0.00010986,2]
[333034003,1721775040878,-484.60764385,0.00010986,2]
[333034004,1721775040887,-93.73611171,0.00010986,2]
[333034005,1721775040899,-406.26388829,0.00010986,2]
[333034006,1721775040908,-299.77611171,0.00010986,2]
[333034008,1721775040923,-200.22388829,0.00010986,2]
[333034010,1721775040932,-173.66795442,0.00010986,2]
[333034012,1721775040944,-326.33204558,0.00010986,2]
[333034014,1721775040954,-71.29893829,0.00010986,2]
[333034016,1721775040965,-428.70106171,0.00010986,2]
[333034018,1721775040974,-500.0,0.00010986,2]
[333034020,1721775040984,-221.99958794,0.00010986,2]
[333034022,1721775040995,-278.00041206,0.00010986,2]
[333034023,1721775041004,-500.0,0.00010986,2]
[333034025,1721775041014,-500.0,0.00010986,2]
[333034027,1721775041024,-500.0,0.00010986,2]
[333034029,1721775041033,-500.0,0.00010986,2]
[333034031,1721775041043,-500.0,0.00010986,2]
[333034033,1721775041052,-449.7808038,0.00010986,2]
[333034036,1721775041075,-50.2191962,0.00010986,2]
[333034038,1721775041085,-500.0,0.00010986,2]
[333034040,1721775041095,-500.0,0.00010986,2]
[333034041,1721775041105,-500.0,0.00010986,2]
[333034042,1721775041115,-500.0,0.00010986,2]
[333034043,1721775041125,-500.0,0.00010986,2]
[333034044,1721775041135,-500.0,0.00010986,2]
[333034045,1721775041144,-500.0,0.00010986,2]
[333034046,1721775041154,-500.0,0.00010986,2]
[333034047,1721775041164,-500.0,0.00010986,2]
[333034048,1721775041174,-500.0,0.00010986,2]
[333034049,1721775041183,-500.0,0.00010986,2]
[333034050,1721775041193,-500.0,0.00010986,2]
[333034051,1721775041202,-500.0,0.00010986,2]
[333034052,1721775041211,-500.0,0.00010986,2]
[333034053,1721775041221,-280.0,0.00010986,2]
[333034054,1721775041230,-500.0,0.00010986,2]
[333034055,1721775041240,-500.0,0.00010986,2]
[333034056,1721775041250,-500.0,0.00010986,2]
[333034057,1721775041260,-500.0,0.00010986,2]
[333034058,1721775041269,-500.0,0.00010986,2]
[333034059,1721775041278,-500.0,0.00010986,2]
[333034060,1721775041298,-500.0,0.00010986,2]
[333034061,1721775041316,-500.0,0.00010986,2]
[333034062,1721775041326,-591.03,0.00010986,2]
[333034063,1721775041335,-500.0,0.00010986,2]
[333034064,1721775041345,-500.0,0.00010986,2]
[333034065,1721775041354,-500.0,0.00010986,2]
[333034066,1721775041364,-500.0,0.00010986,2]
[333034067,1721775041374,-501.51570788,0.00010986,2]
[333034068,1721775041383,-500.0,0.00010986,2]
[333034069,1721775041392,-502.97318054,0.00010986,2]
[333034070,1721775041402,-500.0,0.00010986,2]
[333034071,1721775041412,-500.0,0.00010986,2]
[333034072,1721775041421,-553.46,0.00010986,2]
[333034073,1721775041430,-172.83810638,0.00010986,2]
[333034074,1721775041443,-327.16189362,0.00010986,2]
[333034075,1721775041452,-1000.0,0.00010986,2]
[333034076,1721775041461,-500.0,0.00010986,2]
[333034077,1721775041477,-500.0,0.00010986,2]
[333034078,1721775041486,-500.0,0.00010986,2]
[333034079,1721775041496,-500.0,0.00010986,2]
[333034080,1721775041506,-500.0,0.00010986,2]
[333034081,1721775041516,-500.0,0.00010986,2]
[333034082,1721775041528,-500.0,0.00010986,2]
[333034083,1721775041539,-500.0,0.00010986,2]
[333034084,1721775041551,-500.0,0.00010986,2]
[333034085,1721775041560,-500.0,0.00010986,2]
[333034086,1721775041570,-500.0,0.00010986,2]
[333034087,1721775041579,-500.0,0.00010986,2]
[333034088,1721775041588,-500.0,0.00010986,2]
[333034089,1721775041597,-557.93,0.00010986,2]
[333034090,1721775041607,-500.0,0.00010986,2]
[333034091,1721775041618,-500.0,0.00010986,2]
[333034092,1721775041628,-500.0,0.00010986,2]
[333034093,1721775041638,-500.0,0.00010986,2]
[333034094,1721775041647,-577.04,0.00010986,2]
[333034095,1721775041657,-500.0,0.00010986,2]
[333034096,1721775041666,-500.0,0.00010986,2]
[333034097,1721775041676,-500.0,0.00010986,2]
[333034098,1721775041685,-500.0,0.00010986,2]
[333034099,1721775041695,-500.0,0.00010986,2]
[333034100,1721775041704,-500.0,0.00010986,2]
[333034101,1721775041714,-500.0,0.00010986,2]
[333034102,1721775041723,-500.0,0.00010986,2]
[333034103,1721775041734,-500.0,0.00010986,2]
[333034104,1721775041744,-500.0,0.00010986,2]
[333034105,1721775041755,-500.0,0.00010986,2]
[333034106,1721775041766,-500.0,0.00010986,2]
[333034107,1721775041776,-500.0,0.00010986,2]
[333034108,1721775041786,-500.0,0.00010986,2]
[333034109,1721775041795,-500.0,0.00010986,2]
[333034110,1721775041804,-500.0,0.00010986,2]
[333034111,1721775041814,-500.0,0.00010986,2]
[333034112,1721775041823,-500.0,0.00010986,2]
[333034113,1721775041832,-539.09,0.00010986,2]
[333034114,1721775041843,-500.0,0.00010986,2]
[333034115,1721775041852,-500.0,0.00010986,2]
[333034116,1721775041861,-500.0,0.00010986,2]
[333034117,1721775041871,-550.87,0.00010986,2]
[333034118,1721775041880,-500.0,0.00010986,2]
[333034119,1721775041890,-500.0,0.00010986,2]
[333034120,1721775041900,-500.0,0.00010986,2]
[333034121,1721775041909,-500.0,0.00010986,2]
[333034122,1721775041919,-500.0,0.00010986,2]
[333034123,1721775041931,-500.0,0.00010986,2]
[333034124,1721775041940,-500.0,0.00010986,2]
[333034125,1721775041949,-500.0,0.00010986,2]
[333034126,1721775041959,-500.0,0.00010986,2]
[333034127,1721775041968,-500.0,0.00010986,2]
[333034128,1721775041978,-500.0,0.00010986,2]
[333034129,1721775041989,-500.0,0.00010986,2]
[333034130,1721775041999,-500.0,0.00010986,2]
[333034131,1721775042008,-500.0,0.00010986,2]
[333034132,1721775042018,-500.0,0.00010986,2]
[333034133,1721775042027,-500.0,0.00010986,2]
[333034134,1721775042036,-500.0,0.00010986,2]
[333034135,1721775042046,-500.0,0.00010986,2]
[333034136,1721775042056,-500.0,0.00010986,2]
[333034137,1721775042066,-500.0,0.00010986,2]
[333034138,1721775042076,-500.0,0.00010986,2]